bitfinex-derivatives/quotes_ETHF0:USTF0_20240829
["timestamp","ask_amount","ask_price","bid_price","bid_amount"]
[1724958057690,3.2078,2519.9,2519.7,0.39676]
[1724958057895,4.21805917,2519.8,2519.1,44.0078]
[1724958058196,3.2078,2519.9,2519.7,0.39677]
[1724958058490,3.2078,2519.9,2519.8,0.39675]
[1724958058692,3.2078,2519.9,2519.7,0.39676]
[1724958058888,0.39675,2519.8,2519.5,0.39679]
[1724958059196,4.2916301,2519.8,2519.1,40.8]
[1724958059396,4.2916301,2519.8,2519.6,0.39678]
[1724958059694,3.2078,2519.9,2519.8,0.39675]
[1724958059893,3.2078,2520.3,2519.4,4.19984]
[1724958060096,0.3966,2520.8,2520.5,0.39664]
[1724958060291,2.3204,2520.7,2520.5,0.39664]
[1724958060490,3.97315061,2520.6,2519.8,0.99185]
[1724958060693,0.00595061,2520.6,2519.8,0.99185]
[1724958060999,0.00595061,2520.6,2519.5,5.75198]
[1724958061000,0.39668,2520.3,2520.0,0.39671]
[1724958061193,3.968,2520.2,2519.4,3.2078]
[1724958061389,4.29861641,2520.2,2520.0,0.39671]
[1724958061588,4.29861641,2520.2,2519.4,3.2078]
[1724958061788,3.2078,2520.3,2520.2,0.39669]
[1724958061993,7.1758,2520.3,2520.2,0.39669]
[1724958062194,0.00595061,2520.6,2520.5,0.39664]
[1724958062392,0.00595061,2520.6,2519.9,0.99181]
[1724958062603,0.00595061,2520.6,2520.0,0.99181]
[1724958062795,0.00595061,2520.6,2520.5,1.38825]
[1724958062992,6.1e-07,2520.6,2520.5,8.37986]
[1724958063197,6.1e-07,2520.6,2520.5,12.93910382]
[1724958063397,7.7094,2522.2,2520.9,0.99144]
[1724958063601,8.10579,2522.2,2521.1,4.76]
[1724958063899,7.7094,2522.2,2521.7,0.39644]
[1724958064104,7.7094,2522.2,2521.2,3.2078]
[1724958064403,0.00595061,2522.0,2521.6,0.39646]
[1724958064896,8.34734608,2521.9,2521.4,0.00595061]
[1724958065200,0.00595061,2522.0,2521.7,0.39645]
[1724958065501,11.55514608,2521.9,2521.4,0.00595061]
[1724958065797,0.39653,2521.3,2520.8,0.39659]
[1724958066001,0.39653,2521.3,2520.8,40.8]
[1724958066002,3.2078,2521.3,2520.8,40.8]
[1724958066193,3.2078,2521.3,2521.0,0.39656]
[1724958066393,3.29512,2521.8,2521.1,0.39654]
[1724958066394,3.60428,2521.6,2521.1,0.39654]
[1724958066592,3.60428,2521.6,2520.5,3.2078]
[1724958066593,0.39649,2521.5,2521.0,0.39656]
[1724958066794,0.39649,2521.5,2520.4,0.39665]
[1724958066795,0.39659,2520.9,2520.4,0.39665]
[1724958066996,3.2078,2521.0,2520.1,3.2078]
[1724958067200,3.2078,2521.0,2520.6,0.39662]
[1724958067398,3.2078,2521.0,2520.1,3.2078]
[1724958067399,0.42282881,2520.9,2520.1,3.2078]
[1724958067601,0.42282881,2520.9,2520.7,0.39661]
[1724958067793,0.42282881,2520.9,2520.2,40.8]
[1724958068399,0.42282881,2520.9,2520.7,0.3966]
[1724958068799,0.42282881,2520.9,2520.2,40.8]
[1724958068800,4.39002881,2520.9,2520.2,40.8]
[1724958068998,0.42282881,2520.9,2520.8,0.3966]
[1724958069196,5.4904,2521.3,2520.2,40.8]
[1724958069197,2.2826,2521.3,2520.4,3.2078]
[1724958069397,2.2826,2521.3,2521.0,0.39656]
[1724958069698,4.20824285,2521.2,2521.1,0.39655]
[1724958070105,4.20824285,2521.2,2520.4,3.2078]
[1724958070106,3.2078,2521.6,2520.4,7.7414]
[1724958070295,0.39649,2521.5,2521.0,0.39656]
[1724958070495,4.32320531,2521.5,2520.5,0.99161]
[1724958070701,4.71969531,2521.5,2521.1,0.39654]
[1724958071107,4.32320531,2521.5,2521.2,0.39653]
[1724958071301,4.71969531,2521.5,2521.1,0.39654]
[1724958071809,4.32320531,2521.5,2521.2,0.39653]
[1724958072195,4.3394,2521.7,2520.7,3.2078]
[1724958072196,1.00401348,2521.7,2521.1,0.99138]
[1724958072400,0.39645,2521.8,2521.4,0.39649]
[1724958072603,4.60824348,2521.9,2521.5,0.39648]
[1724958072811,4.60824348,2521.9,2521.0,3.2078]
[1724958072812,4.14987771,2521.7,2521.0,3.2078]
[1724958073105,4.14987771,2521.7,2521.1,0.99138]
[1724958073310,4.14987771,2521.7,2521.6,0.39647]
[1724958073908,3.2078,2521.9,2521.7,0.39644]
[1724958074103,3.2078,2521.9,2521.8,0.39644]
[1724958074615,13.1734,2521.9,2521.2,40.8]
[1724958074800,13.1734,2521.9,2519.8,3.53218543]
[1724958074801,3.2078,2521.3,2520.4,3.2078]
[1724958075001,3.2078,2521.0,2520.1,3.2078]
[1724958075308,0.00595061,2520.8,2520.7,0.39661]
[1724958075816,0.39657,2521.0,2520.7,1.71865939]
[1724958076005,4.21181348,2521.1,2520.7,1.71865939]
[1724958076006,4.60837348,2521.1,2520.8,0.39659]
[1724958076202,1.00401348,2521.3,2520.6,0.99157]
[1724958076514,4.60831348,2521.4,2521.1,0.39654]
[1724958076713,3.6043,2521.4,2521.1,0.39654]
[1724958076912,11.75886564,2521.4,2521.2,0.39653]
[1724958077106,3.2078,2521.4,2521.0,1.328]
[1724958077306,3.60431,2521.4,2521.1,1.71859939]
[1724958077622,4.58466564,2521.3,2521.1,0.39654]
[1724958077811,8.55106564,2521.3,2521.0,0.40250061]
[1724958078018,3.9664,2521.2,2521.0,0.40250061]
[1724958078315,8.95681653,2521.1,2521.0,0.00595061]
[1724958078513,12.92321653,2521.1,2521.0,0.00595061]
[1724958078711,17.52265305,2521.1,2521.0,0.00595061]
[1724958078910,3.2078,2521.1,2521.0,1.72456]
[1724958079225,0.00595061,2521.5,2521.0,1.72456]
[1724958079226,1.00401348,2521.4,2521.0,0.00595061]
[1724958079512,4.2050692,2521.1,2521.0,0.00595061]
[1724958079919,4.2050692,2521.1,2520.2,44.9995]
[1724958079920,12.47674762,2521.1,2520.2,44.40448]
[1724958080215,4.21857753,2520.9,2520.3,1.32204939]
[1724958080424,0.3966,2520.8,2520.5,0.39663]
[1724958080718,0.39661,2520.7,2520.3,1.71871939]
[1724958081107,4.355701,2520.6,2520.5,0.39664]
[1724958081305,4.355701,2520.6,2520.4,0.39665]
[1724958081504,4.355701,2520.7,2520.6,0.39663]
[1724958081718,3.2078,2520.9,2520.8,0.3966]
[1724958081910,3.2078,2520.9,2520.8,1.71864939]
[1724958082616,1.51228475,2521.5,2521.2,0.39652]
[1724958082617,4.22452814,2521.5,2521.2,0.39652]
[1724958082813,4.62101814,2521.5,2521.2,0.39652]
[1724958083112,4.32298463,2521.3,2520.2,46.54493792]
[1724958083320,3.2078,2521.1,2520.7,1.32204939]
[1724958083514,0.39654,2521.2,2520.9,0.39657]
[1724958083709,4.32298463,2521.0,2520.7,1.32204939]
[1724958083916,0.39656,2521.0,2520.7,1.71864939]
[1724958084418,8.29018463,2520.9,2520.5,0.39663]
[1724958084622,7.53078463,2520.9,2520.5,1.32204939]
[1724958084820,0.39662,2520.7,2520.4,0.39665]
[1724958085014,3.9672,2520.6,2520.2,3.2078]
[1724958085216,8.91535693,2520.8,2520.3,1.32204939]
[1724958085522,8.91535693,2520.8,2519.6,2.1095]
[1724958085523,0.39672,2520.1,2519.8,0.39674]
[1724958085813,3.6960915,2520.0,2519.4,0.39681]
[1724958086013,3.6960915,2520.0,2518.9,6.1805]
[1724958086014,3.2078,2519.5,2518.9,7.1738]
[1724958086209,0.39682,2519.4,2519.0,0.39688]
[1724958086416,0.39683,2519.3,2518.9,5.68493939]
[1724958086606,0.39682,2519.4,2519.0,0.39687]
[1724958086805,4.26403441,2519.2,2518.9,5.28804939]
[1724958087017,4.26403441,2519.3,2519.1,0.39686]
[1724958087216,4.66084441,2519.5,2519.1,0.39686]
[1724958087412,3.2078,2519.6,2518.9,5.28804939]
[1724958087413,4.26403441,2519.4,2519.2,0.39685]
[1724958087613,3.2078,2519.6,2519.3,1.32204939]
[1724958087916,4.47123244,2519.5,2519.4,0.3968]
[1724958088117,3.73603414,2520.0,2519.5,1.32204939]
[1724958088118,3.24047753,2520.0,2519.5,1.32204939]
[1724958088310,1.01077753,2520.1,2519.7,1.32204939]
[1724958088513,0.00595061,2520.2,2519.9,0.39673]
[1724958088713,4.47123244,2520.0,2519.9,1.71878939]
[1724958089022,4.47616005,2520.1,2520.0,0.39672]
[1724958089218,0.40264061,2520.2,2519.9,1.71877939]
[1724958089518,4.47616005,2520.1,2519.9,1.71877939]
[1724958089722,8.84088005,2520.1,2519.7,0.39676]
[1724958089916,5.48693758,2520.1,2519.8,0.39675]
[1724958090111,5.48693758,2520.1,2519.9,0.39673]
[1724958090314,4.47616005,2520.1,2520.0,0.39672]
[1724958090517,5.48693758,2520.1,2519.9,0.39673]
[1724958090717,5.48693758,2520.1,2520.0,0.39672]
[1724958090911,4.87287005,2520.1,2519.7,1.32204939]
[1724958091112,4.21857753,2519.9,2519.0,2.3362]
[1724958091308,3.2078,2519.6,2518.9,3.966]
[1724958091511,0.39679,2519.6,2519.2,0.39685]
[1724958091708,4.17707125,2519.5,2519.1,1.32204939]
[1724958091910,4.17707125,2519.5,2519.2,1.32204939]
[1724958092114,3.13937753,2519.8,2519.6,0.39678]
[1724958092312,2.1286,2519.8,2519.5,1.32204939]
[1724958092517,4.23167081,2519.7,2519.5,1.32204939]
[1724958092718,4.23167081,2519.7,2519.6,0.39678]
[1724958093115,8.20047081,2519.7,2519.5,0.39679]
[1724958093313,3.9688,2519.6,2518.9,6.2116]
[1724958093516,4.62845081,2519.7,2519.3,1.32204939]
[1724958093517,8.45024834,2519.7,2519.3,1.32204939]
[1724958093716,0.39682,2519.4,2519.1,0.39685]
[1724958093911,5.32877149,2519.6,2519.1,1.32204939]
[1724958094113,4.31799396,2519.3,2519.1,1.32204939]
[1724958094428,0.39684,2519.3,2518.9,4.36289]
[1724958094727,4.48919983,2519.2,2518.9,5.28804939]
[1724958094931,4.48919983,2519.2,2519.1,0.39686]
[1724958095223,1.90307414,2519.9,2519.1,0.39686]
[1724958095224,1.01077753,2520.0,2519.9,0.39674]
[1724958095420,1.01672814,2520.2,2519.8,1.32204939]
[1724958095719,4.48919983,2519.9,2519.8,0.39675]
[1724958095912,0.00595061,2520.2,2520.1,1.71875939]
[1724958096818,0.00595061,2520.2,2520.1,4.92655939]
[1724958097018,6.1e-07,2520.2,2520.1,11.91832939]
[1724958097213,6.1e-07,2520.2,2520.1,10.92655939]
[1724958097720,6.1e-07,2520.2,2520.1,51.72655939]
[1724958098225,6.1e-07,2520.2,2520.1,57.47832939]
[1724958098426,6.50287753,2521.3,2521.2,0.39653]
[1724958098427,2.2843,2521.3,2521.2,0.39653]
[1724958098926,4.35432705,2521.3,2521.2,1.71857878]
[1724958099233,1.01077753,2521.6,2521.3,0.39651]
[1724958099423,3.2078,2521.7,2521.5,1.32204878]
[1724958099424,3.21375061,2521.7,2521.5,1.32204878]
[1724958100217,3.21375061,2521.7,2521.2,0.00595061]
[1724958100218,8.37469137,2521.6,2521.2,0.00595061]
[1724958100420,8.37469137,2521.6,2521.4,1.32204878]
[1724958100421,4.40909137,2521.6,2521.4,1.32204878]
[1724958101022,3.9656,2521.5,2521.2,0.00595061]
[1724958101327,7.3798244,2521.4,2521.2,0.00595061]
[1724958101524,11.3462244,2521.4,2521.2,0.00595061]
[1724958101729,3.9664,2521.3,2521.2,0.00595061]
[1724958102025,8.20879703,2521.3,2521.2,0.00595061]
[1724958102526,2.01397757,2521.7,2521.5,0.39647]
[1724958102527,0.00595061,2521.7,2521.5,0.39647]
[1724958102718,0.00595061,2521.7,2521.6,1.32204878]
[1724958102920,0.00595061,2521.7,2521.2,0.00595061]
[1724958103120,4.40545727,2521.6,2521.4,1.32204878]
[1724958103323,0.39649,2521.5,2521.4,1.32204878]
[1724958103622,4.40545727,2521.5,2521.2,0.40248061]
[1724958103923,3.9664,2521.5,2521.2,0.00595061]
[1724958104225,8.45229235,2521.4,2521.2,0.00595061]
[1724958104620,3.9664,2521.3,2521.2,0.00595061]
[1724958105022,8.31200512,2521.3,2521.2,0.00595061]
[1724958105328,1.01077753,2521.5,2521.4,0.3965]
[1724958105525,0.00595061,2521.7,2521.6,0.39647]
[1724958105721,0.00595061,2521.7,2521.6,1.71851878]
[1724958106420,0.00595061,2521.7,2521.6,1.32204878]
[1724958106724,8.21202545,2521.7,2521.2,0.00595061]
[1724958106913,4.24642545,2521.7,2521.3,1.32204878]
[1724958107117,4.24642545,2521.7,2521.5,0.39647]
[1724958107330,0.00595061,2521.7,2521.6,1.71851878]
[1724958108924,1.01077753,2522.4,2521.6,8.31322878]
[1724958109229,4.31187807,2522.3,2522.1,1.32204878]
[1724958110031,4.36118,2522.2,2521.8,0.39643]
[1724958110219,5.3226556,2522.3,2521.9,1.32204878]
[1724958110419,0.39642,2522.0,2521.8,1.32204878]
[1724958110620,3.2078,2521.9,2521.7,1.32204878]
[1724958110924,10.04978635,2521.9,2521.7,1.32204878]
[1724958111119,0.39645,2521.7,2521.5,3.2078]
[1724958111325,3.9656,2521.8,2520.8,3.2078]
[1724958111625,7.39484635,2521.6,2521.2,1.32799939]
[1724958111824,0.39652,2521.4,2521.2,1.32799939]
[1724958112123,4.33391121,2521.3,2521.2,1.32799939]
[1724958112329,4.73043121,2521.3,2521.2,1.32799939]
[1724958112525,8.69683121,2521.3,2521.2,0.00595061]
[1724958112733,3.9664,2521.3,2521.2,0.00595061]
[1724958112934,8.3006814,2521.3,2521.2,0.00595061]
[1724958113231,4.3342814,2521.3,2521.2,1.72452939]
[1724958114027,4.3342814,2521.3,2521.2,1.32799939]
[1724958114928,4.3342814,2521.3,2521.2,1.72452939]
[1724958115430,8.6972014,2521.3,2521.2,0.00595061]
[1724958115623,3.9664,2521.3,2521.2,0.00595061]
[1724958115926,8.4438678,2521.3,2521.2,0.00595061]
[1724958117328,4.4774678,2521.3,2521.2,1.72452939]
[1724958119236,8.0817878,2521.3,2521.2,0.00595061]
[1724958119427,13.57072,2521.3,2521.2,0.00595061]
[1724958119733,18.0481878,2521.3,2521.2,0.00595061]
[1724958120534,17.6516678,2521.3,2520.5,44.0078]
[1724958120724,17.6516678,2521.3,2520.2,0.39669]
[1724958120725,0.39667,2520.4,2520.2,0.39669]
[1724958120923,3.2078,2520.7,2520.2,1.32204878]
[1724958121129,3.2078,2520.7,2520.3,1.32204878]
[1724958121324,3.2078,2520.7,2519.8,0.99189]
[1724958121325,4.78144198,2520.6,2520.2,1.32204878]
[1724958121524,0.39664,2520.5,2520.3,0.39667]
[1724958121725,4.38481198,2520.6,2520.4,1.32204878]
[1724958122022,4.38481198,2520.6,2520.1,3.21375061]
[1724958122023,4.46476265,2520.4,2520.3,0.39667]
[1724958122229,4.46476265,2520.6,2520.3,1.32204878]
[1724958122522,0.39666,2520.4,2520.3,1.32204878]
[1724958122726,0.39669,2520.2,2520.1,0.00595061]
[1724958123132,14.47204778,2520.2,2520.1,0.00595061]
[1724958123522,15.08613531,2520.2,2519.5,3.2078]
[1724958123728,0.39684,2519.3,2518.9,3.966]
[1724958124033,3.2078,2519.6,2519.0,1.71891878]
[1724958124034,4.5546685,2519.2,2519.0,1.71891878]
[1724958124226,4.5546685,2519.2,2519.1,0.39686]
[1724958124432,3.977753,2519.4,2519.1,0.39686]
[1724958124634,4.36642,2519.4,2519.0,0.39687]
[1724958124833,0.39682,2519.4,2519.0,1.32204878]
[1724958125133,4.7731516,2519.4,2519.0,1.32204878]
[1724958125339,0.39683,2519.3,2519.0,1.32204878]
[1724958125736,4.3763316,2519.2,2519.0,1.32204878]
[1724958126034,4.3763316,2519.2,2519.0,1.71892878]
[1724958126239,2.27905061,2519.5,2519.1,1.32204878]
[1724958126432,2.67586061,2519.5,2519.1,1.32204878]
[1724958126630,4.16286951,2519.4,2519.1,1.32204878]
[1724958126829,4.55968951,2519.4,2518.9,4.36289]
[1724958127140,4.55968951,2519.4,2519.0,1.32204878]
[1724958127349,4.16286951,2519.4,2519.0,1.71892878]
[1724958127548,3.2078,2519.3,2518.9,3.966]
[1724958127835,7.57424,2519.3,2518.9,3.966]
[1724958128137,7.57424,2519.3,2518.9,0.4483]
[1724958128138,3.60468,2519.0,2518.9,0.4483]
[1724958128340,10.28520753,2519.2,2518.8,0.00085168]
[1724958128532,7.40060753,2519.0,2518.8,0.00085168]
[1724958128735,0.39689,2518.9,2518.8,0.00085168]
[1724958128937,2.1881,2518.9,2518.2,41.197]
[1724958129142,3.2078,2518.7,2518.3,1.32204878]
[1724958129332,3.2078,2518.7,2518.2,40.8]
[1724958129333,3.2078,2518.7,2518.2,1.32204878]
[1724958129645,3.2078,2518.7,2517.9,3.2078]
[1724958129646,0.39699,2518.3,2517.9,3.2078]
[1724958129938,0.39709,2517.7,2517.2,0.39715]
[1724958130155,3.61084061,2517.7,2517.5,1.32204878]
[1724958130333,4.29275708,2517.6,2517.5,1.32204878]
[1724958130530,4.29275708,2517.6,2517.5,1.71916878]
[1724958130939,0.00595061,2517.7,2517.6,0.3971]
[1724958131135,0.00595061,2517.7,2517.6,1.71914878]
[1724958132138,0.00595061,2517.7,2517.6,0.3971]
[1724958132342,0.00595061,2517.7,2517.6,7.71914878]
[1724958132642,0.00595061,2517.7,2517.6,3.97894878]
[1724958133740,6.1e-07,2517.7,2517.6,10.97170878]
[1724958133947,3.2078,2518.7,2517.9,0.99263]
[1724958134141,3.2078,2518.7,2518.4,1.71900817]
[1724958134451,4.18973226,2518.6,2518.5,0.39696]
[1724958134635,4.18973226,2518.6,2518.5,1.71900817]
[1724958135039,0.00595061,2518.8,2518.7,0.39693]
[1724958135239,3.2078,2519.9,2519.8,0.39675]
[1724958135439,0.39672,2520.1,2519.7,1.32204817]
[1724958135643,4.34653688,2519.8,2519.7,1.71881817]
[1724958135946,4.3378,2520.6,2519.8,1.32204817]
[1724958135947,0.0719467,2520.1,2519.8,1.32204817]
[1724958136152,4.44142482,2519.8,2519.4,1.32204817]
[1724958136442,4.25759955,2519.9,2519.6,1.32204817]
[1724958136645,0.00595061,2519.9,2519.6,1.71882817]
[1724958136951,0.00595061,2519.9,2519.7,0.39677]
[1724958136952,4.44142482,2519.8,2519.7,0.39677]
[1724958137139,0.00595061,2519.9,2519.8,1.71879817]
[1724958138048,0.00595061,2519.9,2519.8,1.32204817]
[1724958138247,8.41509339,2519.9,2519.7,0.39677]
[1724958138443,4.44629339,2519.9,2519.7,1.32204817]
[1724958139234,3.2078,2519.8,2519.5,40.8]
[1724958139440,7.1766,2519.8,2519.3,0.00595061]
[1724958139637,0.39682,2519.4,2519.3,0.00595061]
[1724958139842,3.2078,2519.5,2519.1,40.8]
[1724958140154,4.53998489,2519.4,2519.0,4.52984817]
[1724958140538,3.2078,2519.2,2518.5,45.4564]
[1724958140839,4.29436081,2519.1,2518.9,0.39689]
[1724958141043,4.29436081,2519.1,2518.8,1.32204817]
[1724958141235,4.69123081,2519.1,2518.8,1.32204817]
[1724958141641,3.2078,2518.9,2518.6,0.00595061]
[1724958142039,9.25695081,2519.1,2518.6,0.00595061]
[1724958142040,4.2162242,2518.8,2518.7,1.32204817]
[1724958142349,4.2162242,2518.8,2518.6,0.00595061]
[1724958142350,4.2162242,2519.0,2518.9,1.32204817]
[1724958142547,4.2162242,2519.0,2518.9,0.39689]
[1724958142849,3.2078,2519.4,2519.2,0.39684]
[1724958143154,4.48232657,2519.3,2519.2,1.71888817]
[1724958143454,4.48232657,2519.3,2519.2,1.32204817]
[1724958143650,4.48232657,2519.3,2519.2,1.71889817]
[1724958143855,3.2078,2520.0,2519.2,1.32204817]
[1724958144039,3.2078,2520.0,2519.8,1.32204817]
[1724958144240,3.2078,2520.0,2519.8,1.71879817]
[1724958145355,3.2078,2520.4,2519.8,4.92659817]
[1724958145547,3.2078,2520.4,2519.8,1.71879817]
[1724958145854,3.2078,2520.1,2519.8,1.32204817]
[1724958146154,3.2078,2520.1,2519.3,0.39683]
[1724958146155,8.42785362,2519.9,2519.3,0.39683]
[1724958146341,3.2078,2519.7,2519.5,1.32204817]
[1724958146541,3.60457,2519.7,2519.5,1.32204817]
[1724958146742,4.45310301,2519.6,2519.5,1.32204817]
[1724958146950,4.45310301,2519.6,2519.2,3.2078]
[1724958147156,0.39675,2519.8,2519.5,1.32204817]
[1724958147450,3.2078,2519.7,2519.5,1.32204817]
[1724958147753,4.95067294,2519.6,2519.5,1.32204817]
[1724958148051,8.52269294,2519.6,2519.2,44.0078]
[1724958148357,4.55389294,2519.6,2519.5,1.32204817]
[1724958148653,4.55389294,2519.6,2519.4,1.71886817]
[1724958148850,4.55389294,2519.6,2519.4,1.32204817]
[1724958149447,4.95068294,2519.6,2519.4,1.32204817]
[1724958149642,4.95068294,2519.6,2519.2,3.60464]
[1724958149643,3.9688,2519.5,2519.2,3.60464]
[1724958149957,4.55325612,2519.4,2519.3,1.71886817]
[1724958150158,8.15787612,2519.4,2519.3,1.32204817]
[1724958150348,0.39693,2518.7,2518.6,0.00595061]
[1724958150758,4.36733,2518.7,2518.6,0.00595061]
[1724958151056,8.92058612,2518.7,2518.6,0.00595061]
[1724958151261,4.55325612,2518.7,2518.6,1.32799878]
[1724958151454,4.55325612,2518.7,2518.6,1.72493878]
[1724958151653,3.2078,2519.1,2518.6,1.32799878]
[1724958151853,3.2078,2519.1,2518.9,1.71893817]
[1724958152048,4.47054101,2519.0,2518.9,1.32204817]
[1724958152761,4.76,2519.5,2518.9,1.32204817]
[1724958152762,3.2078,2519.7,2519.0,0.9922]
[1724958152954,0.00595061,2519.9,2519.6,1.32204817]
[1724958153259,0.00595061,2519.9,2519.8,1.32204817]
[1724958153564,4.95068059,2519.9,2519.8,1.32204817]
[1724958153751,4.55394059,2519.9,2519.8,1.32204817]
[1724958153951,4.95068059,2519.9,2519.8,1.32204817]
[1724958154257,14.52274059,2519.9,2519.4,40.8]
[1724958154450,0.39675,2519.8,2519.5,1.32204817]
[1724958154761,4.27384642,2519.7,2519.5,1.32204817]
[1724958154965,7.48164642,2519.7,2519.5,1.32204817]
[1724958155150,3.60457,2519.7,2519.5,1.32204817]
[1724958155352,4.56021735,2519.6,2519.5,1.32204817]
[1724958155857,0.39678,2519.6,2519.5,1.32204817]
[1724958156267,4.31009148,2519.6,2519.1,2.2233]
[1724958156567,9.63679148,2519.6,2519.3,1.32204817]
[1724958156757,0.39681,2519.5,2519.3,1.32204817]
[1724958156958,5.72349,2519.6,2519.3,1.32204817]
[1724958157160,4.2771567,2519.4,2519.3,1.71886817]
[1724958157454,4.2771567,2519.4,2518.9,2.231]
[1724958157455,4.2771567,2519.5,2518.9,2.231]
[1724958157657,3.21375061,2519.9,2519.6,1.32204817]
[1724958157855,3.21375061,2519.9,2519.8,1.32204817]
[1724958158056,3.21375061,2519.9,2519.8,1.71879817]
[1724958158256,7.5212926,2519.9,2519.8,1.71879817]
[1724958158462,0.00595061,2519.9,2519.8,7.71879817]
[1724958158658,3.2078,2520.7,2519.8,10.52984817]
[1724958158861,3.2078,2520.7,2520.5,1.32204817]
[1724958158862,0.39663,2520.6,2520.5,1.32204817]
[1724958159268,4.85008275,2520.6,2520.5,1.32204817]
[1724958159563,0.39664,2520.5,2520.3,0.00595061]
[1724958160069,4.45345275,2520.6,2520.5,0.39664]
[1724958160361,0.00595061,2520.8,2520.5,1.32204817]
[1724958160664,4.34472826,2520.7,2520.6,1.32204817]
[1724958160966,4.74133826,2520.7,2520.6,1.32204817]
[1724958161158,4.34472826,2520.7,2520.6,1.32204817]
[1724958161555,11.51972826,2520.7,2520.3,0.00595061]
[1724958161753,0.39666,2520.4,2520.3,1.32799878]
[1724958161963,8.56330579,2520.7,2520.3,1.32799878]
[1724958162170,0.9917,2520.3,2519.1,3.2078]
[1724958162370,0.39675,2519.8,2519.7,1.32204817]
[1724958162667,3.2078,2519.9,2519.2,40.8]
[1724958162865,3.2078,2519.9,2519.8,1.32204817]
[1724958163066,0.39676,2519.8,2519.7,1.32204817]
[1724958163266,3.9688,2519.8,2519.1,2.1967]
[1724958163562,4.55503419,2519.8,2519.6,1.32204817]
[1724958164063,0.3968,2519.5,2519.2,0.00595061]
[1724958164363,1.01077753,2519.8,2519.2,0.00595061]
[1724958164566,4.21857753,2519.9,2519.7,1.32204817]
[1724958164959,4.13726126,2519.8,2519.7,1.32204817]
[1724958165162,0.39678,2519.7,2519.3,0.39683]
[1724958165461,1.01077753,2519.8,2519.6,1.32204817]
[1724958165653,1.40752753,2519.8,2519.7,1.32204817]
[1724958165858,1.40752753,2519.8,2519.2,0.00595061]
[1724958165859,6.26633414,2519.8,2519.2,1.32799878]
[1724958166167,0.39691,2518.8,2518.6,3.2078]
[1724958166463,1.40656515,2519.0,2518.8,1.32204817]
[1724958166859,3.76281273,2519.2,2518.8,1.32204817]
[1724958166860,4.32723802,2518.9,2518.8,1.32204817]
[1724958167055,4.72412802,2518.9,2518.8,1.32204817]
[1724958167258,0.39691,2518.8,2518.6,3.2078]
[1724958167462,5.96304258,2518.9,2518.7,1.32204817]
[1724958167682,5.56614258,2518.9,2518.7,1.32204817]
[1724958167968,0.39691,2518.8,2518.7,1.32204817]
[1724958168164,4.7908851,2518.8,2518.7,1.32204817]
[1724958168870,5.80098301,2518.8,2518.7,1.32204817]
[1724958169969,5.80098301,2518.8,2518.0,4.3895]
[1724958169970,0.39693,2518.7,2517.7,0.39708]
[1724958170269,3.2078,2518.0,2517.5,2.60491]
[1724958170568,4.54066425,2517.9,2517.5,2.60491]
[1724958170865,4.54066425,2517.9,2517.5,5.4156]
[1724958171064,3.83251273,2518.2,2517.5,5.4156]
[1724958171065,4.21709923,2518.3,2517.5,9.3876]
[1724958171266,4.97590572,2517.9,2517.5,2.2078]
[1724958171468,7.78665572,2518.0,2517.5,2.60491]
[1724958171658,0.3971,2517.7,2517.2,0.39715]
[1724958171859,3.60489,2517.7,2517.2,0.39715]
[1724958172058,3.94281935,2517.6,2517.2,41.19715]
[1724958172258,3.94281935,2517.6,2517.3,0.39715]
[1724958172767,3.94281935,2517.6,2517.1,3.2078]
[1724958172969,3.2078,2517.4,2516.4,0.99323]
[1724958173162,3.94281935,2517.6,2516.6,2.1617]
[1724958173163,4.33991935,2517.6,2516.6,2.1617]
[1724958173368,4.20958845,2517.3,2517.2,0.39716]
[1724958173668,4.20958845,2517.6,2517.1,3.2078]
[1724958174061,3.21375061,2517.7,2516.8,0.99305]
[1724958174062,3.21375061,2517.7,2517.6,0.3971]
[1724958174258,3.21375061,2517.7,2517.0,3.2078]
[1724958174459,4.56706529,2517.6,2517.0,3.2078]
[1724958174668,3.21375061,2517.7,2517.4,0.39712]
[1724958174972,0.00595061,2517.7,2517.1,3.2078]
[1724958175164,0.00595061,2517.7,2517.6,0.3971]
[1724958175360,4.5452338,2517.6,2517.4,0.39712]
[1724958175878,0.00595061,2517.7,2517.4,0.39712]
[1724958176058,0.40304061,2517.7,2517.3,0.39714]
[1724958176367,4.53918478,2517.6,2517.3,0.39714]
[1724958176562,4.53918478,2517.6,2517.0,3.2078]
[1724958176877,4.93629478,2517.6,2517.2,0.39716]
[1724958177175,4.93629478,2517.6,2517.0,3.2078]
[1724958177176,3.2078,2517.4,2517.0,3.2078]
[1724958177358,3.2078,2517.4,2517.0,3.60499]
[1724958177558,4.45151137,2517.3,2517.0,3.2078]
[1724958177759,4.84867137,2517.3,2517.0,3.60499]
[1724958178563,4.45151137,2517.3,2517.0,3.2078]
[1724958178766,4.45151137,2517.3,2517.0,3.60499]
[1724958179468,4.45151137,2517.3,2517.1,0.39718]
[1724958179669,4.45151137,2517.3,2517.2,0.39716]
[1724958180066,3.2078,2517.4,2517.0,3.2078]
[1724958180368,3.2078,2517.4,2517.1,0.39717]
[1724958180565,4.41191947,2517.3,2517.1,0.39717]
[1724958180763,4.41191947,2517.3,2517.2,0.39716]
[1724958181061,4.5327,2517.6,2517.0,3.2078]
[1724958181062,0.00595061,2517.7,2517.6,0.3971]
[1724958181277,3.97795061,2517.7,2517.2,0.39716]
[1724958181571,3.97795061,2517.7,2517.0,3.2078]
[1724958181572,4.55212624,2517.5,2517.3,0.39715]
[1724958181772,4.94923624,2517.6,2517.0,3.2078]
[1724958181773,4.27731651,2517.7,2517.0,3.2078]
[1724958181974,8.15705624,2517.4,2517.1,0.39717]
[1724958182159,8.15705624,2517.4,2517.0,3.2078]
[1724958182160,7.75992624,2517.4,2517.0,3.2078]
[1724958182366,0.39718,2517.1,2517.0,3.2078]
[1724958182562,4.30084965,2517.3,2516.6,2.1617]
[1724958182863,3.2078,2517.0,2516.6,0.39725]
[1724958183072,3.2078,2517.0,2516.0,3.20125]
[1724958183264,3.60505,2516.7,2516.3,0.39729]
[1724958183470,0.39728,2516.5,2516.0,2.2079]
[1724958183668,3.2078,2516.4,2516.0,40.8]
[1724958183862,4.07461351,2516.4,2516.0,41.19734]
[1724958184072,3.6051,2516.4,2516.0,41.19734]
[1724958184272,3.2078,2516.4,2515.6,2.2079]